bitfinex/quotes_SOLUSD_20251118
["timestamp","ask_amount","ask_price","bid_price","bid_amount"]
[1763483174976,9.73063203,141.14,141.11,0.72]
[1763483175154,9.73063203,141.15,141.11,0.72]
[1763483175356,9.73063203,141.16,141.11,10.45063203]
[1763483175571,18.12096,141.2,141.1,4.36]
[1763483175572,0.72,141.15,141.1,4.36]
[1763483175865,9.73063203,141.12,141.09,0.72]
[1763483176053,9.73063203,141.12,141.1,4.38]
[1763483176678,9.73063203,141.16,141.11,10.45063203]
[1763483176972,5.81601915,141.17,141.11,6.53601915]
[1763483177176,18.12096,141.2,141.12,0.72]
[1763483177177,5.81601915,141.15,141.12,0.72]
[1763483177546,5.81601915,141.16,141.12,0.72]
[1763483177753,5.81601915,141.15,141.13,4.38]
[1763483178480,0.72,141.27,141.15,18.12096]
[1763483178654,5.81601915,141.24,141.19,5.81601915]
[1763483178974,5.81601915,141.24,141.16,9.78882769]
[1763483178975,5.81601915,141.23,141.2,4.38]
[1763483179177,5.81601915,141.24,141.2,4.38]
[1763483179579,5.81601915,141.25,141.21,0.72]
[1763483179887,5.81601915,141.28,141.22,5.81601915]
[1763483180196,5.81601915,141.28,141.23,4.38]
[1763483180381,5.81601915,141.28,141.23,5.1]
[1763483180585,0.1,141.31,141.27,5.81601915]
[1763483180880,0.1,141.31,141.28,10.19601915]
[1763483181083,0.1,141.31,141.29,4.38]
[1763483181262,0.1,141.31,141.29,5.06]
[1763483181580,0.1,141.31,141.3,0.68]
[1763483182775,5.91601915,141.31,141.3,4.36]
[1763483183383,5.91601915,141.31,141.27,0.68]
[1763483183384,0.1,141.31,141.27,0.68]
[1763483183562,0.1,141.31,141.3,4.36]
[1763483183878,18.12096,141.37,141.3,4.36]
[1763483183879,0.1,141.4,141.35,9.78882769]
[1763483184095,0.1,141.4,141.38,5.81601915]
[1763483184396,0.69,141.51,141.42,27.90978769]
[1763483184608,5.81601915,141.58,141.5,5.81601915]
[1763483184894,0.26593088,141.54,141.53,27.90978769]
[1763483185096,3.52436669,141.72,141.57,18.12096]
[1763483185312,0.69,141.71,141.61,18.12096]
[1763483185524,0.69,141.71,141.65,5.81601915]
[1763483185676,0.69,141.71,141.66,4.38]
[1763483186672,0.69,141.71,141.67,4.38]
[1763483187286,0.69,141.71,141.61,18.12096]
[1763483187503,0.69,141.71,141.66,5.81601915]
[1763483187721,6.50601915,141.71,141.67,4.38]
[1763483187976,0.69,141.71,141.68,4.38]
[1763483188177,7.81601915,141.8,141.68,4.38]
[1763483188178,6.50601915,141.74,141.68,4.38]
[1763483188483,0.69,141.74,141.69,5.81601915]
[1763483188685,5.81601915,141.71,141.7,4.38]
[1763483188886,5.81601915,141.73,141.7,4.38]
[1763483189196,6.50601915,141.73,141.7,4.38]
[1763483189383,0.69,141.73,141.7,4.38]
[1763483189567,5.81601915,141.72,141.66,5.81601915]
[1763483189898,5.81601915,141.72,141.67,4.38]
[1763483190097,5.81601915,141.72,141.65,18.12096]
[1763483190274,5.81601915,141.72,141.66,10.19601915]
[1763483190695,0.69,141.73,141.66,10.19601915]
[1763483190905,5.81601915,141.67,141.61,5.81601915]
[1763483191077,0.69,141.73,141.62,4.38]
[1763483191078,5.81601915,141.66,141.62,4.38]
[1763483191280,2.0,141.83,141.64,9.78882769]
[1763483191495,3.69168658,141.86,141.64,9.78882769]
[1763483191496,5.81601915,141.73,141.68,5.81601915]
[1763483191702,5.81601915,141.69,141.67,4.38]
[1763483191899,5.81601915,141.68,141.67,4.38]
[1763483192074,5.81601915,141.69,141.66,4.38]
[1763483192402,5.81601915,141.71,141.66,4.38]
[1763483192613,9.78882769,141.77,141.66,4.38]
[1763483192614,5.81601915,141.7,141.66,4.38]
[1763483192911,5.81601915,141.67,141.66,4.38]
[1763483193121,6.50601915,141.67,141.66,4.38]
[1763483193286,6.50601915,141.67,141.53,9.78882769]
[1763483193485,5.81601915,141.64,141.59,5.81601915]
[1763483193718,5.81601915,141.64,141.6,4.38]
[1763483194013,5.81601915,141.63,141.61,4.38]
[1763483194214,5.81601915,141.64,141.62,4.38]
[1763483194791,5.81601915,141.63,141.62,4.38]
[1763483195250,0.69,141.72,141.63,18.12096]
[1763483195517,5.81601915,141.67,141.64,4.38]
[1763483195697,5.81601915,141.68,141.65,4.38]
[1763483195894,5.81601915,141.66,141.58,5.81601915]
[1763483196099,5.81601915,141.64,141.59,4.38]
[1763483196290,18.81096,141.69,141.59,10.19601915]
[1763483196492,5.81601915,141.64,141.59,10.19601915]
[1763483196697,5.81601915,141.65,141.6,5.81601915]
[1763483197204,6.50601915,141.64,141.58,18.12096]
[1763483197403,5.81601915,141.62,141.57,5.81601915]
[1763483197618,5.81601915,141.61,141.59,4.38]
[1763483197797,5.81601915,141.61,141.55,5.81601915]
[1763483198006,5.81601915,141.6,141.56,4.38]
[1763483198314,5.81601915,141.61,141.56,10.19601915]
[1763483198706,5.81601915,141.6,141.56,4.38]
[1763483199747,5.81601915,141.6,141.57,4.38]
[1763483200122,0.69,141.61,141.51,16.00666384]
[1763483200123,5.81601915,141.58,141.52,5.81601915]
[1763483200324,18.12096,141.65,141.56,5.81601915]
[1763483200526,0.69,141.64,141.57,4.38]
[1763483200741,5.81601915,141.58,141.5,21.49442904]
[1763483200920,5.81601915,141.58,141.52,5.81601915]
[1763483201123,5.81601915,141.58,141.53,4.38]
[1763483201530,0.69,141.58,141.53,4.38]
[1763483201745,6.50601915,141.58,141.53,4.38]
[1763483201930,5.81601915,141.56,141.53,4.38]
[1763483202442,5.81601915,141.56,141.5,45.43140819]
[1763483202644,5.81601915,141.54,141.51,4.36]
[1763483203122,0.72,141.56,141.51,4.36]
[1763483203123,5.81601915,141.55,141.51,4.36]
[1763483203551,5.81601915,141.56,141.51,10.17601915]
[1763483203853,6.53601915,141.56,141.51,10.17601915]
[1763483204043,0.72,141.62,141.55,5.81601915]
[1763483204241,5.81601915,141.7,141.52,9.78882769]
[1763483204242,5.81601915,141.59,141.56,4.36]
[1763483204420,6.53601915,141.59,141.56,4.36]
[1763483204750,5.81601915,141.6,141.56,4.36]
[1763483204924,6.53601915,141.61,141.56,4.36]
[1763483205124,6.53601915,141.61,141.56,10.17601915]
[1763483205352,5.81601915,141.57,141.51,18.12096]
[1763483205538,0.72,141.6,141.52,4.36]
[1763483205739,18.12096,141.64,141.52,4.36]
[1763483205740,5.81601915,141.56,141.52,4.36]
[1763483205949,0.72,141.59,141.5,21.75835954]
[1763483206158,5.81601915,141.53,141.48,5.81601915]
[1763483206452,0.72,141.58,141.49,10.17601915]
[1763483206453,5.81601915,141.55,141.49,10.17601915]
[1763483206653,5.81601915,141.55,141.5,5.81601915]
[1763483206853,9.78882769,141.65,141.55,18.12096]
[1763483207155,6.53601915,141.66,141.57,18.12096]
[1763483207328,6.53601915,141.66,141.61,5.81601915]
[1763483207531,0.72,141.66,141.62,10.19601915]
[1763483207726,5.81601915,141.68,141.62,10.19601915]
[1763483208160,6.53601915,141.68,141.62,10.19601915]
[1763483208458,6.53601915,141.68,141.63,5.81601915]
[1763483208642,5.81601915,141.67,141.62,10.19601915]
[1763483208959,5.81601915,141.67,141.63,4.38]
[1763483208960,5.81601915,141.65,141.63,4.38]
[1763483209137,6.53601915,141.67,141.63,4.38]
[1763483209342,166.8,141.77,141.63,10.19601915]
[1763483209343,5.81601915,141.68,141.63,10.19601915]
[1763483209531,0.72,141.7,141.64,5.81601915]
[1763483209532,5.81601915,141.69,141.64,5.81601915]
[1763483209937,6.53601915,141.69,141.64,5.81601915]
[1763483210559,5.81601915,141.67,141.62,5.81601915]
[1763483210863,5.81601915,141.67,141.65,4.38]
[1763483211028,27.90978769,141.76,141.65,4.38]
[1763483211230,5.81601915,141.69,141.65,4.38]
[1763483211672,6.53601915,141.7,141.65,10.19601915]
[1763483211837,5.81601915,141.72,141.67,5.81601915]
[1763483212043,0.72,141.72,141.68,5.81601915]
[1763483212261,6.53601915,141.72,141.69,4.36]
[1763483212459,6.53601915,141.72,141.7,4.36]
[1763483212650,0.72,141.71,141.7,4.36]
[1763483212846,6.53601915,141.71,141.7,4.36]
[1763483213150,5.81601915,141.72,141.7,4.36]
[1763483213678,170.61601915,141.8,141.7,4.36]
[1763483213679,0.72,141.75,141.7,4.36]
[1763483213838,5.81601915,141.74,141.7,4.36]
[1763483214247,5.81601915,141.74,141.69,5.81601915]
[1763483214248,5.81601915,141.71,141.69,4.36]
[1763483214448,5.81601915,141.7,141.59,18.82722456]
[1763483214747,5.81601915,141.69,141.63,5.81601915]
[1763483215068,5.81601915,141.69,141.6,14.14882769]
[1763483215069,5.81601915,141.69,141.64,10.17601915]
[1763483215450,6.53601915,141.69,141.64,10.17601915]
[1763483215648,0.72,141.71,141.64,10.17601915]
[1763483215851,0.72,141.71,141.62,18.12096]
[1763483215852,5.81601915,141.68,141.65,4.36]
[1763483216057,0.72,141.71,141.65,4.36]
[1763483216058,5.81601915,141.67,141.65,4.36]
[1763483216263,5.81601915,141.67,141.62,5.81601915]
[1763483216463,0.72,141.7,141.53,11.37399806]
[1763483216464,5.81601915,141.64,141.53,11.37399806]
[1763483216677,5.81601915,141.65,141.59,5.81601915]
[1763483216873,5.81601915,141.65,141.6,4.36]
[1763483217181,6.53601915,141.64,141.6,4.36]
[1763483217672,5.81601915,141.62,141.57,5.81601915]
[1763483217853,5.81601915,141.62,141.54,11.37399806]
[1763483217854,5.81601915,141.62,141.53,11.37399806]
[1763483218055,5.81601915,141.61,141.54,4.36]
[1763483218271,0.72,141.61,141.55,18.12096]
[1763483218576,0.72,141.61,141.55,10.17601915]
[1763483218577,6.53601915,141.61,141.55,10.17601915]
[1763483218783,6.53601915,141.61,141.55,28.29697915]
[1763483218962,5.81601915,141.6,141.55,28.29697915]
[1763483219157,5.81601915,141.6,141.55,10.17601915]
[1763483219353,6.53601915,141.6,141.55,10.17601915]
[1763483219752,6.53601915,141.6,141.55,4.36]
[1763483220059,6.53601915,141.6,141.55,22.48096]
[1763483220262,0.72,141.59,141.55,22.48096]
[1763483220770,0.72,141.59,141.53,11.37399806]
[1763483220771,5.81601915,141.58,141.52,17.19001721]
[1763483220976,5.81601915,141.53,141.5,11.37399806]
[1763483221153,0.72,141.57,141.53,4.36]
[1763483221154,5.81601915,141.54,141.53,4.36]
[1763483221353,5.81601915,141.54,141.51,11.37399806]
[1763483221570,9.78882769,141.6,141.51,4.36]
[1763483221767,6.53601915,141.53,141.51,4.36]
[1763483222278,0.72,141.52,141.51,4.36]
[1763483222462,6.53601915,141.52,141.51,4.36]
[1763483223994,0.72,141.52,141.51,4.36]
[1763483224152,0.72,141.52,141.51,15.73399806]
[1763483224354,6.53601915,141.52,141.5,11.37399806]
[1763483224555,5.81601915,141.51,141.5,11.37399806]
[1763483224755,6.53601915,141.51,141.48,15.73399806]
[1763483225060,33.56579703,141.58,141.48,15.73399806]
[1763483225061,5.81601915,141.49,141.48,15.73399806]
[1763483225300,6.53601915,141.5,141.48,4.36]
[1763483225460,0.72,141.53,141.48,4.36]
[1763483225785,5.81601915,141.52,141.48,4.36]
[1763483225985,6.53601915,141.53,141.48,25.34134989]
[1763483226186,5.81601915,141.6,141.5,20.98134989]
[1763483226187,0.72,141.56,141.5,20.98134989]
[1763483226355,5.81601915,141.55,141.51,15.16533074]
[1763483226554,5.81601915,141.55,141.51,19.52533074]
[1763483226780,0.72,141.54,141.51,19.52533074]
[1763483226967,0.72,141.54,141.51,4.36]
[1763483227168,6.53601915,141.54,141.51,4.36]
[1763483227480,6.53601915,141.54,141.52,15.16533074]
[1763483227657,6.53601915,141.53,141.5,19.52533074]
[1763483227855,0.72,141.53,141.51,4.36]
[1763483228164,0.72,141.52,141.51,15.16533074]
[1763483228361,0.72,141.52,141.41,27.69011118]
[1763483228362,0.72,141.52,141.43,4.36]
[1763483228565,9.78882769,141.51,141.43,4.36]
[1763483229090,5.81601915,141.44,141.43,4.36]
[1763483230090,5.81601915,141.45,141.43,5.07]
[1763483230576,5.81601915,141.45,141.43,4.36]
[1763483230774,5.81601915,141.44,141.41,0.71]
[1763483231080,5.81601915,141.44,141.39,18.32096]
[1763483231081,5.81601915,141.42,141.39,0.2]
[1763483231290,5.81601915,141.4,141.39,0.2]
[1763483234799,5.81601915,141.4,141.39,0.2]
[1763483236000,5.81601915,141.41,141.39,0.91]
[1763483236591,5.81601915,141.4,141.39,0.2]
[1763483237101,6.48601915,141.4,141.39,0.2]
[1763483238191,12.3020383,141.4,141.39,0.2]
[1763483238394,12.3020383,141.4,141.36,0.2]
[1763483238610,0.66,141.39,141.36,0.2]
[1763483238790,9.69623028,141.37,141.36,0.2]
[1763483239305,10.35623028,141.37,141.36,0.2]
[1763483240420,47.96224825,141.37,141.26,0.7]
[1763483240725,9.78882769,141.34,141.24,4.36]
[1763483241009,9.69623028,141.28,141.25,0.7]
[1763483241722,9.69623028,141.3,141.25,10.39623028]
[1763483242018,9.69623028,141.3,141.26,0.7]
[1763483242585,18.68096,141.36,141.26,0.7]
[1763483242784,9.69623028,141.31,141.26,0.7]
[1763483243503,9.69623028,141.32,141.27,9.69623028]
[1763483243705,62.3921416,141.48,141.27,9.69623028]
[1763483243706,9.69623028,141.33,141.27,27.81719028]
[1763483244005,9.78882769,141.39,141.28,10.39623028]
[1763483244006,9.69623028,141.34,141.28,10.39623028]
[1763483244213,9.69623028,141.35,141.29,14.75623028]
[1763483244422,9.69623028,141.34,141.29,5.06]
[1763483244725,9.69623028,141.34,141.3,0.7]
[1763483244925,9.69623028,141.34,141.3,0.105]
[1763483245097,9.69623028,141.34,141.29,1.132]
[1763483246022,9.69623028,141.35,141.29,10.82823028]
[1763483246234,0.66,141.38,141.33,9.69623028]
[1763483246235,9.69623028,141.38,141.33,9.69623028]
[1763483246523,9.69623028,141.4,141.34,4.36]
[1763483246706,9.69623028,141.4,141.34,14.05623028]
[1763483246906,9.69623028,141.39,141.32,18.12096]
[1763483247108,9.69623028,141.37,141.33,4.36]
[1763483247309,9.69623028,141.39,141.33,14.75623028]
[1763483247634,9.69623028,141.38,141.34,0.7]
[1763483249128,9.69623028,141.39,141.34,0.7]
[1763483249719,9.69623028,141.4,141.35,9.69623028]
[1763483249909,9.69623028,141.4,141.34,0.7]
[1763483249910,9.69623028,141.42,141.36,9.69623028]
[1763483250110,9.69623028,141.42,141.37,5.06]
[1763483250331,9.69623028,141.41,141.37,5.06]
[1763483250638,9.69623028,141.44,141.39,9.69623028]
[1763483250839,10.35623028,141.49,141.43,9.69623028]
[1763483251129,9.69623028,141.5,141.44,14.75623028]
[1763483251307,10.35623028,141.51,141.45,9.69623028]
[1763483251641,0.66,141.51,141.45,0.7]
[1763483251827,9.69623028,141.51,141.46,0.7]
[1763483253143,9.79623028,141.52,141.46,10.39623028]
[1763483253817,9.79623028,141.52,141.47,0.7]
[1763483254025,9.79623028,141.52,141.48,14.05623028]
[1763483254026,0.1,141.52,141.48,14.05623028]
[1763483254431,0.1,141.52,141.49,0.7]
[1763483254632,0.1,141.52,141.48,4.36]
[1763483254920,0.1,141.52,141.49,0.7]
[1763483255356,9.79623028,141.52,141.48,4.36]
[1763483255644,0.1,141.52,141.49,0.7]
[1763483256023,0.1,141.52,141.48,4.36]
[1763483256230,0.1,141.52,141.48,5.06]
[1763483256538,0.1,141.52,141.49,4.36]
[1763483256847,0.1,141.52,141.5,4.36]
[1763483257425,9.79623028,141.52,141.5,4.36]
[1763483258351,10.35623028,141.51,141.44,0.7]
[1763483258649,9.69623028,141.48,141.45,4.36]
[1763483259020,9.69623028,141.48,141.45,5.06]
[1763483259528,0.35341,141.48,141.46,0.7]
[1763483259748,0.35341,141.48,141.46,10.39623028]
[1763483260123,0.35341,141.48,141.47,10.39623028]
[1763483261439,0.35341,141.48,141.47,18.82096]
[1763483261651,0.35341,141.48,141.47,28.51719028]
[1763483262728,0.69,141.6,141.51,18.12096]
[1763483263030,2.0,141.68,141.52,5.08]
[1763483263031,10.38623028,141.59,141.52,5.08]
[1763483263238,9.69623028,141.58,141.52,0.72]
[1763483263429,9.69623028,141.56,141.53,4.36]
[1763483263634,9.69623028,141.57,141.53,4.36]
[1763483263942,10.38623028,141.58,141.53,4.36]
[1763483264462,10.38623028,141.57,141.53,4.36]
[1763483265035,0.69,141.57,141.53,4.36]
[1763483265241,10.38623028,141.57,141.53,4.36]
[1763483265560,166.8,141.66,141.53,4.36]
[1763483265561,9.69623028,141.6,141.54,0.72]
[1763483265767,9.69623028,141.59,141.54,0.72]
[1763483266254,9.69623028,141.6,141.54,0.72]
[1763483266552,9.78882769,141.66,141.54,0.72]
[1763483266553,9.69623028,141.59,141.54,0.72]
[1763483266959,10.38623028,141.59,141.54,0.72]
[1763483267456,0.69,141.59,141.54,10.41623028]
[1763483268559,0.69,141.59,141.54,0.72]
[1763483268931,10.38623028,141.59,141.54,0.72]
[1763483269159,9.69623028,141.58,141.53,4.36]
[1763483269465,9.69623028,141.54,141.49,0.72]
[1763483269635,9.69623028,141.55,141.5,5.08]
[1763483270162,10.38623028,141.56,141.51,0.72]
[1763483271434,9.69623028,141.55,141.51,0.72]
[1763483271660,10.38623028,141.55,141.5,4.36]
[1763483271841,10.38623028,141.55,141.5,5.08]
[1763483272042,9.69623028,141.53,141.46,0.72]
[1763483272361,9.69623028,141.53,141.47,14.77623028]
[1763483272541,9.69623028,141.52,141.47,5.08]
[1763483273245,10.38623028,141.51,141.47,4.36]
[1763483273687,9.69623028,141.52,141.47,5.08]
[1763483274173,10.38623028,141.52,141.47,5.08]
[1763483275173,10.38623028,141.51,141.48,4.36]
[1763483275542,10.38623028,141.5,141.49,4.36]
[1763483276571,0.69,141.5,141.49,4.36]
[1763483276750,10.38623028,141.5,141.49,4.36]
[1763483278068,10.38623028,141.5,141.41,0.72]
[1763483278370,18.81096,141.49,141.45,4.36]
[1763483278551,9.69623028,141.46,141.43,4.36]
[1763483278751,9.69623028,141.44,141.43,4.36]
[1763483278974,9.69623028,141.44,141.39,0.72]
[1763483279146,9.69623028,141.42,141.4,4.36]
[1763483279349,9.69623028,141.43,141.4,4.36]
[1763483279564,9.69623028,141.44,141.4,5.08]
[1763483280276,9.69623028,141.43,141.4,5.08]
[1763483281077,0.69,141.49,141.41,10.41623028]
[1763483281387,0.69,141.49,141.42,9.69623028]
[1763483281688,9.69623028,141.5,141.44,27.81719028]
[1763483281891,9.69623028,141.5,141.45,4.36]
[1763483282089,0.69,141.51,141.46,0.72]
[1763483282090,10.38623028,141.51,141.46,0.72]
[1763483282589,0.69,141.54,141.47,9.69623028]
[1763483282884,10.38623028,141.54,141.48,9.69623028]
[1763483283090,10.38623028,141.54,141.49,4.36]
[1763483283476,10.38623028,141.53,141.49,4.36]
[1763483283681,9.69623028,141.54,141.49,5.08]
[1763483283867,0.69,141.57,141.5,10.41623028]
[1763483284063,0.69,141.57,141.52,9.69623028]
[1763483284266,0.69,141.6,141.54,9.69623028]
[1763483284503,10.38623028,141.6,141.54,9.69623028]
[1763483284783,9.69623028,141.6,141.55,0.72]
[1763483284992,10.38623028,141.59,141.56,4.36]
[1763483285294,9.69623028,141.59,141.56,4.36]
[1763483285502,9.69623028,141.57,141.51,18.12096]
[1763483285687,0.69,141.58,141.49,0.72]
[1763483285688,9.69623028,141.55,141.52,4.36]
[1763483285869,9.69623028,141.59,141.53,9.69623028]
[1763483286077,9.69623028,141.59,141.53,28.53719028]
[1763483286381,9.69623028,141.58,141.53,18.84096]
[1763483286581,9.69623028,141.59,141.53,28.53719028]
[1763483286781,0.69,141.6,141.53,18.12096]
[1763483286982,0.69,141.59,141.52,4.36]
[1763483287192,9.69623028,141.55,141.52,4.36]
[1763483287394,9.69623028,141.57,141.52,4.36]
[1763483287605,9.69623028,141.57,141.52,5.08]
[1763483287773,9.69623028,141.59,141.53,10.41623028]
[1763483287969,9.69623028,141.57,141.52,18.12096]
[1763483288174,9.69623028,141.55,141.53,4.36]
[1763483288382,9.69623028,141.57,141.53,5.08]
[1763483289311,10.38623028,141.56,141.49,18.84096]
[1763483289488,9.69623028,141.54,141.5,4.36]
[1763483289879,9.69623028,141.56,141.51,0.72]
[1763483290396,9.69623028,141.56,141.51,10.41623028]
[1763483290598,9.69623028,141.57,141.52,9.69623028]
[1763483290802,9.69623028,141.57,141.52,10.41623028]
[1763483290998,164.8,141.64,141.55,9.69623028]
[1763483291177,0.69,141.69,141.58,9.69623028]
[1763483291378,9.69623028,141.65,141.59,9.69623028]
[1763483291604,9.69623028,141.65,141.6,5.08]
[1763483291905,9.69623028,141.65,141.61,0.72]
[1763483292075,9.69623028,141.66,141.61,0.72]
[1763483292279,9.69623028,141.65,141.61,0.72]
[1763483292514,184.28505797,141.72,141.61,0.72]
[1763483292719,9.69623028,141.68,141.62,19.48505797]
[1763483292891,0.7,141.71,141.62,4.36]
[1763483292892,9.69623028,141.63,141.62,4.36]
[1763483293381,10.39623028,141.63,141.62,4.36]
[1763483293574,10.39623028,141.63,141.59,4.36]
[1763483293918,9.69623028,141.61,141.59,4.36]
[1763483294104,9.69623028,141.61,141.6,4.36]
[1763483294406,10.39623028,141.61,141.59,4.36]
[1763483294611,9.69623028,141.6,141.55,0.71]
[1763483294788,9.69623028,141.59,141.57,4.36]
[1763483294983,9.69623028,141.58,141.57,4.36]
[1763483295379,9.69623028,141.59,141.57,4.36]
[1763483295583,10.39623028,141.58,141.51,10.40623028]
[1763483295788,9.69623028,141.55,141.49,9.69623028]
[1763483295989,164.8,141.62,141.53,37.60601797]
[1763483296185,9.69623028,141.6,141.54,14.05623028]
[1763483296404,9.69623028,141.6,141.54,14.76623028]
[1763483296801,9.69623028,141.56,141.41,18.12096]
[1763483296985,9.69623028,141.55,141.49,19.48505797]
[1763483297308,9.69623028,141.55,141.5,4.36]
[1763483297503,9.69623028,141.56,141.5,14.76623028]
[1763483297712,9.69623028,141.57,141.51,10.40623028]
[1763483298216,9.69623028,141.57,141.52,0.71]
[1763483298504,18.12096,141.62,141.52,0.71]
[1763483298505,18.12096,141.62,141.53,27.81719028]
[1763483298693,9.69623028,141.6,141.54,14.05623028]
[1763483298888,0.7,141.61,141.54,10.14048509]
[1763483299105,0.7,141.61,141.54,10.85048509]
[1763483299614,5.78048509,141.58,141.55,4.36]
[1763483299819,5.78048509,141.57,141.55,4.36]
[1763483300108,5.78048509,141.59,141.55,4.36]
[1763483300310,6.45048509,141.61,141.56,0.68]
[1763483300892,5.78048509,141.62,141.56,6.46048509]
[1763483301097,0.67,141.66,141.58,5.78048509]
[1763483301297,6.45048509,141.66,141.6,5.78048509]
[1763483302778,5.78048509,141.62,141.55,9.78882769]
[1763483302981,6.45048509,141.62,141.56,10.14048509]
[1763483303184,6.45048509,141.62,141.56,10.82048509]
[1763483303614,5.78048509,141.61,141.56,5.04]
[1763483304216,6.45048509,141.61,141.57,4.36]
[1763483304612,5.78048509,141.62,141.57,4.36]
[1763483305008,5.78048509,141.64,141.53,0.70656397]
[1763483305206,5.78048509,141.61,141.55,6.46048509]
[1763483305393,0.67,141.62,141.55,6.46048509]
[1763483305593,0.67,141.62,141.54,14.14882769]
[1763483305594,5.78048509,141.62,141.57,18.12096]
[1763483305808,0.67,141.65,141.58,10.14048509]
[1763483306020,5.78048509,141.64,141.58,10.82048509]
[1763483306216,6.45048509,141.65,141.59,6.46048509]
[1763483307825,0.67,141.64,141.55,0.68]
[1763483308005,5.78048509,141.61,141.56,4.36]
[1763483308428,5.78048509,141.62,141.57,0.68]
[1763483308813,6.45048509,141.62,141.57,0.68]
[1763483309127,6.45048509,141.62,141.56,10.14048509]
[1763483309298,5.78048509,141.64,141.58,5.78048509]
[1763483309698,0.67,141.65,141.58,6.46048509]
[1763483310020,5.78048509,141.64,141.58,6.46048509]
[1763483310204,5.78048509,141.62,141.55,6.46048509]
[1763483310407,5.78048509,141.61,141.56,4.36]
[1763483310621,5.78048509,141.59,141.52,6.46048509]
[1763483310803,5.78048509,141.58,141.53,4.36]
[1763483311005,5.78048509,141.59,141.53,4.36]
[1763483311299,5.78048509,141.59,141.53,10.14048509]
[1763483311519,6.45048509,141.59,141.53,10.14048509]
[1763483312322,5.78048509,141.61,141.55,5.78048509]
[1763483312820,0.67,141.62,141.56,5.78048509]
[1763483312821,6.45048509,141.62,141.56,5.78048509]
[1763483313121,6.45048509,141.62,141.57,4.36]
[1763483313733,5.78048509,141.6,141.57,4.36]
[1763483313898,6.45048509,141.6,141.57,4.36]
[1763483314098,0.67,141.6,141.57,4.36]
[1763483314325,5.78048509,141.62,141.57,4.36]
[1763483314832,0.67,141.64,141.58,0.68]
[1763483315019,6.45048509,141.64,141.58,6.46048509]
[1763483315220,5.78048509,141.64,141.58,6.46048509]
[1763483315605,6.45048509,141.65,141.59,5.78048509]
[1763483315814,5.78048509,141.64,141.58,6.46048509]
[1763483316930,0.67,141.65,141.57,4.36]
[1763483316931,0.67,141.65,141.59,5.78048509]
[1763483317134,6.45048509,141.65,141.59,6.46048509]
[1763483317433,23.90144509,141.7,141.63,5.78048509]
[1763483317434,5.78048509,141.69,141.63,5.78048509]
[1763483317627,6.45048509,141.69,141.64,4.36]
[1763483317932,0.67,141.73,141.65,10.14048509]
[1763483318137,5.78048509,141.71,141.65,10.82048509]
[1763483318440,5.78048509,141.71,141.65,5.04]
[1763483318848,5.78048509,141.7,141.65,5.04]
[1763483319014,5.78048509,141.7,141.65,10.82048509]
[1763483319229,0.77,141.74,141.66,0.68]
[1763483319437,5.78048509,141.72,141.67,5.78048509]
[1763483319930,6.45048509,141.72,141.66,5.78048509]
[1763483320141,5.78048509,141.71,141.65,10.82048509]
[1763483320934,5.78048509,141.7,141.65,10.82048509]
[1763483321256,6.45048509,141.71,141.66,5.78048509]
[1763483321467,0.67,141.71,141.67,4.36]
[1763483321747,5.78048509,141.72,141.67,10.82048509]
[1763483322435,6.45048509,141.73,141.67,10.84048509]
[1763483323157,5.78048509,141.72,141.67,5.06]
[1763483323353,0.1,141.74,141.68,0.7]
[1763483323553,0.1,141.74,141.69,5.78048509]
[1763483323870,5.88048509,141.74,141.68,0.7]
[1763483324036,5.88048509,141.74,141.68,6.48048509]
[1763483324940,6.50048509,141.73,141.66,0.7]
[1763483325256,6.50048509,141.73,141.68,5.78048509]
[1763483325654,6.50048509,141.73,141.68,0.7]
[1763483325876,6.50048509,141.72,141.67,5.78048509]